fUSD/lending_fUSD_20260601
["ID","MTS","AMOUNT","RATE_DAILY","PERIOD"]
[423648682,1780273832000,-985.72928949,0.00010167,2]
[423648677,1780273832000,-558.73858181,0.0001,2]
[423648679,1780273832000,-9999.99,0.0001,2]
[423648678,1780273832000,-558.73858181,0.0001,2]
[423648676,1780273832000,-9999.99,9.999e-05,2]
[423648680,1780273832000,-9999.99,0.0001,2]
[423648692,1780273832000,-3259.52613768,0.000106,2]
[423648693,1780273832000,-500.0,0.00010699,2]
[423648683,1780273832000,-4815.73497883,0.00010296,2]
[423648691,1780273832000,-211.36316008,0.000106,2]
[423648697,1780273832000,-500.0,0.00010699,2]
[423648685,1780273832000,-35596.8179,0.00010599,2]
[423648686,1780273832000,-2500.0,0.000106,2]
[423648684,1780273832000,-558.73858181,0.00010296,2]
[423648694,1780273832000,-292.10766817,0.00010699,2]
[423648698,1780273832000,-500.0,0.00010699,2]
[423648695,1780273832000,-500.0,0.00010699,2]
[423648688,1780273832000,-300.0,0.000106,3]
[423648700,1780273832000,-500.0,0.00010699,2]
[423648708,1780273832000,-500.0,0.00010699,2]
[423648754,1780273832000,-500.0,0.00010699,2]
[423648690,1780273832000,-5000.0,0.000106,2]
[423648758,1780273832000,-500.0,0.00010699,2]
[423648793,1780273832000,-500.0,0.00010699,2]
[423648790,1780273832000,-500.0,0.00010699,2]
[423648794,1780273832000,-500.0,0.00010699,2]
[423648791,1780273832000,-500.0,0.00010699,2]
[423648792,1780273832000,-500.0,0.00010699,2]
[423648796,1780273832000,-500.0,0.00010699,2]
[423648803,1780273832000,-309.88325657,0.00010699,2]
[423648797,1780273832000,-500.0,0.00010699,2]
[423648812,1780273832000,-50303.7864917,0.000107,2]
[423648802,1780273832000,-543.84118168,0.00010699,2]
[423648804,1780273832000,-500.0,0.00010699,2]
[423648809,1780273832000,-500.0,0.00010699,2]
[423648800,1780273832000,-500.0,0.00010699,2]
[423648798,1780273832000,-500.0,0.00010699,2]
[423648805,1780273832000,-500.0,0.00010699,2]
[423648807,1780273832000,-500.0,0.00010699,2]
[423648806,1780273832000,-500.0,0.00010699,2]
[423648799,1780273832000,-500.0,0.00010699,2]
[423648801,1780273832000,-500.0,0.00010699,2]
[423648810,1780273832000,-438.57072971,0.00010699,2]
[423648811,1780273832000,-529564.3060392,0.000107,2]
[423648813,1780273832000,-418.17152905,0.000107,2]
[423648767,1780273832000,-500.0,0.00010699,2]
[423648789,1780273832000,-500.0,0.00010699,2]
[423648788,1780273832000,-500.0,0.00010699,2]
[423648808,1780273832000,-500.0,0.00010699,2]
[423648785,1780273832000,-500.0,0.00010699,2]
[423648795,1780273832000,-500.0,0.00010699,2]
[423648771,1780273832000,-500.0,0.00010699,2]
[423648770,1780273832000,-500.0,0.00010699,2]
[423648769,1780273832000,-500.0,0.00010699,2]
[423648756,1780273832000,-500.0,0.00010699,2]
[423648760,1780273832000,-500.0,0.00010699,2]
[423648761,1780273832000,-438.41181687,0.00010699,2]
[423648763,1780273832000,-500.0,0.00010699,2]
[423648765,1780273832000,-500.0,0.00010699,2]
[423648773,1780273832000,-500.0,0.00010699,2]
[423648776,1780273832000,-500.0,0.00010699,2]
[423648774,1780273832000,-500.0,0.00010699,2]
[423648762,1780273832000,-500.0,0.00010699,2]
[423648772,1780273832000,-500.0,0.00010699,2]
[423648786,1780273832000,-500.0,0.00010699,2]
[423648783,1780273832000,-500.0,0.00010699,2]
[423648787,1780273832000,-500.0,0.00010699,2]
[423648784,1780273832000,-500.0,0.00010699,2]
[423648781,1780273832000,-500.0,0.00010699,2]
[423648780,1780273832000,-500.0,0.00010699,2]
[423648779,1780273832000,-500.0,0.00010699,2]
[423648778,1780273832000,-500.0,0.00010699,2]
[423648777,1780273832000,-500.0,0.00010699,2]
[423648775,1780273832000,-173.0898861,0.00010699,2]
[423648782,1780273832000,-500.0,0.00010699,2]
[423648835,1780273838000,-54727.08973957,0.00011099,2]
[423648846,1780273838000,-169.18609589,0.00011829,2]
[423648834,1780273838000,-54727.08973966,0.00011099,2]
[423648841,1780273838000,-4000.0,0.00011592,2]
[423648843,1780273838000,-188.33,0.0001167,2]
[423648852,1780273838000,-54727.08973957,0.00012033,2]
[423648848,1780273838000,-4000.0,0.00011868,2]
[423648844,1780273838000,-188.33,0.00011734,2]
[423648847,1780273838000,-188.33,0.00011861,2]
[423648842,1780273838000,-188.33,0.00011607,2]
[423648853,1780273838000,-720.0,0.00012035,2]
[423648845,1780273838000,-188.33,0.00011797,2]
[423648850,1780273838000,-188.33,0.00011988,2]
[423648849,1780273838000,-188.33,0.00011925,2]
[423648836,1780273838000,-169.18609589,0.00011214,2]
[423648854,1780273838000,-188.33,0.00012052,2]
[423648851,1780273838000,-8608.81610317,0.00012,2]
[423648838,1780273838000,-188.33,0.0001148,2]
[423648820,1780273838000,-2444539.71664604,0.000107,2]
[423648837,1780273838000,-4000.0,0.00011316,2]
[423648865,1780273838000,-188.33,0.00012179,2]
[423648818,1780273838000,-34641.69402841,0.000107,2]
[423648819,1780273838000,-254.17321307,0.000107,2]
[423648821,1780273838000,-600.0,0.000107,3]
[423648822,1780273838000,-900.0,0.000108,3]
[423648823,1780273838000,-1200.0,0.000109,3]
[423648828,1780273838000,-500.0,0.00010958,4]
[423648839,1780273838000,-188.33,0.00011543,2]
[423648824,1780273838000,-169.1860959,0.000109,2]
[423648826,1780273838000,-500.0,0.00010958,2]
[423648825,1780273838000,-1680.0,0.00010941,2]
[423648830,1780273838000,-420.0,0.00010998,2]
[423648840,1780273838000,-54727.08973957,0.00011556,2]
[423648829,1780273838000,-500.0,0.00010958,5]
[423648833,1780273838000,-1000.0,0.00011092,2]
[423648832,1780273838000,-150.0,0.00011066,2]
[423648827,1780273838000,-500.0,0.00010958,3]
[423648856,1780273838000,-9999.99,0.00012087,2]
[423648831,1780273838000,-4000.0,0.0001104,2]
[423648871,1780273838000,-188.33,0.0001237,2]
[423648905,1780273838000,-166.66,0.00014247,2]
[423648918,1780273838000,-10679.24065909,0.000149,2]
[423648920,1780273838000,-300.0,0.000149,5]
[423648924,1780273838000,-300.0,0.00014999,2]
[423648922,1780273838000,-151.0792231,0.00014999,2]
[423648926,1780273838000,-776.12834704,0.00014999,2]
[423648909,1780273838000,-1152.0,0.00014638,2]
[423648938,1780273838000,-555602.48923758,0.00015,2]
[423648907,1780273838000,-166.66,0.00014384,2]
[423648916,1780273838000,-969.68196591,0.000149,2]
[423648911,1780273838000,-1600.0,0.000147,5]
[423648913,1780273838000,-300.0,0.000148,5]
[423648930,1780273838000,-2079.52275691,0.00015,2]
[423648932,1780273838000,-413.92,0.00015,2]
[423648934,1780273838000,-701.34009974,0.00015,14]
[423648936,1780273838000,-8094.61800012,0.00015,2]
[423648928,1780273838000,-3638187.12840896,0.00015,2]
[423648858,1780273838000,-587.0,0.00012098,2]
[423648901,1780273838000,-5391.5447266,0.0001399,2]
[423648897,1780273838000,-166.66,0.00013836,2]
[423648860,1780273838000,-188.33,0.00012115,2]
[423648867,1780273838000,-188.33,0.00012243,2]
[423648869,1780273838000,-188.33,0.00012306,2]
[423648862,1780273838000,-4000.0,0.00012144,2]
[423648873,1780273838000,-500.0,0.00012393,2]
[423648875,1780273838000,-188.33,0.00012433,2]
[423648877,1780273838000,-169.18609589,0.00012443,2]
[423648903,1780273838000,-166.66,0.0001411,2]
[423648879,1780273838000,-188.33,0.00012497,2]
[423648891,1780273838000,-10000.0,0.00013598,2]
[423648893,1780273838000,-200.0,0.00013699,2]
[423648881,1780273838000,-188.33,0.00012561,2]
[423648895,1780273838000,-166.66,0.00013699,2]
[423648883,1780273838000,-188.33,0.00012624,2]
[423648887,1780273838000,-169.18609589,0.00013057,2]
[423648885,1780273838000,-188.33,0.00012688,2]
[423648899,1780273838000,-166.66,0.00013973,2]
[423648889,1780273838000,-823.0,0.00013307,2]
[423648987,1780273839000,-1071.0,0.00015,2]
[423648985,1780273839000,-281.6393173,0.00015,2]
[423649121,1780273840000,-169.18609589,0.00013671,2]
[423649123,1780273840000,-884.05639917,0.00015,2]
[423649122,1780273840000,-4099506.6583467,0.00015,2]
[423649124,1780273840000,-2470.60437497,0.00015,2]
[423649134,1780273843000,-24.48645344,0.00010959,2]
[423649138,1780273846000,-125.51354656,0.00010959,2]
[423649139,1780273846000,-937.65132014,0.00012511,2]
[423649140,1780273848000,-2500.0,0.000106,2]
[423649141,1780273848000,-993.81317504,0.00012511,2]
[423649239,1780274254000,-298.79685156,9e-05,2]
[423649245,1780274829000,200.0,9.6e-05,3]
[423649246,1780274831000,400.0,9.7e-05,3]
[423649247,1780274833000,600.0,9.8e-05,3]
[423649248,1780274835000,800.0,9.9e-05,3]
[423649249,1780274837000,1100.0,0.0001,3]
[423649271,1780275032000,-5000.0,9.8e-05,2]
[423649286,1780275032000,-254.47536772,9.899e-05,2]
[423649277,1780275032000,-657.15285966,9.809e-05,2]
[423649278,1780275032000,-150.99,9.809e-05,2]
[423649272,1780275032000,-2571.5318,9.8e-05,2]
[423649283,1780275032000,-500.0,9.899e-05,2]
[423649279,1780275032000,-9999.99,9.809e-05,2]
[423649274,1780275032000,-2500.0,9.8e-05,2]
[423649280,1780275032000,-8823.83,9.809e-05,2]
[423649281,1780275032000,-500.0,9.899e-05,2]
[423649282,1780275032000,-160.19535689,9.899e-05,2]
[423649273,1780275032000,-5000.0,9.8e-05,2]
[423649276,1780275032000,-299.99,9.8e-05,2]
[423649265,1780275032000,-1000.0,9.605e-05,2]
[423649270,1780275032000,-3719.93050637,9.79e-05,2]
[423649269,1780275032000,-198.0,9.789e-05,2]
[423649268,1780275032000,-657.15285966,9.702e-05,2]
[423649267,1780275032000,-1664.422,9.702e-05,2]
[423649266,1780275032000,-2000.0,9.688e-05,2]
[423649264,1780275032000,-250.0,9.519e-05,2]
[423649263,1780275032000,-180.06,9.448e-05,2]
[423649262,1780275032000,-165.75189662,9.442e-05,2]
[423649261,1780275032000,-179.0007606,9.442e-05,2]
[423649260,1780275032000,-262.62191883,9.442e-05,2]
[423649259,1780275032000,-17.00000021,9.442e-05,2]
[423649258,1780275032000,-250.0,9.365e-05,2]
[423649275,1780275032000,-9999.99,9.8e-05,2]
[423649288,1780275032000,-500.0,9.899e-05,2]
[423649305,1780275032000,-313.86317187,9.899e-05,2]
[423649285,1780275032000,-500.0,9.899e-05,2]
[423649316,1780275032000,-2798.83314732,9.9e-05,2]
[423649287,1780275032000,-500.0,9.899e-05,2]
[423649315,1780275032000,-1369.51623453,9.9e-05,2]
[423649312,1780275032000,-715625.7222609,9.9e-05,2]
[423649313,1780275032000,-113809.41690316,9.9e-05,2]
[423649311,1780275032000,-178.23360853,9.899e-05,2]
[423649309,1780275032000,-172.39858019,9.899e-05,2]
[423649307,1780275032000,-500.0,9.899e-05,2]
[423649306,1780275032000,-500.0,9.899e-05,2]
[423649298,1780275032000,-500.0,9.899e-05,2]
[423649297,1780275032000,-500.0,9.899e-05,2]
[423649304,1780275032000,-500.0,9.899e-05,2]
[423649303,1780275032000,-500.0,9.899e-05,2]
[423649314,1780275032000,-44868.67500404,9.9e-05,2]
[423649301,1780275032000,-500.0,9.899e-05,2]
[423649302,1780275032000,-500.0,9.899e-05,2]
[423649289,1780275032000,-466.9182796,9.899e-05,2]
[423649291,1780275032000,-500.0,9.899e-05,2]
[423649284,1780275032000,-500.0,9.899e-05,2]
[423649292,1780275032000,-500.0,9.899e-05,2]
[423649290,1780275032000,-500.0,9.899e-05,2]
[423649293,1780275032000,-500.0,9.899e-05,2]
[423649295,1780275032000,-551.58722176,9.899e-05,2]
[423649296,1780275032000,-500.0,9.899e-05,2]
[423649299,1780275032000,-500.0,9.899e-05,2]
[423649300,1780275032000,-500.0,9.899e-05,2]
[423649294,1780275032000,-500.0,9.899e-05,2]
[423649332,1780275038000,-500.0,0.00010017,2]
[423649348,1780275038000,-2000.0,0.00010899,2]
[423649340,1780275038000,-250.0,0.00010226,2]
[423649343,1780275038000,-300.0,0.00010302,2]
[423649342,1780275038000,-500.0,0.00010302,2]
[423649341,1780275038000,-185.64,0.00010278,2]
[423649338,1780275038000,-999.99,0.00010167,2]
[423649333,1780275038000,-185.64,0.00010027,2]
[423649335,1780275038000,-211.36316007,0.00010126,2]
[423649334,1780275038000,-518.21014261,0.00010126,2]
[423649337,1780275038000,-354.86327728,0.00010157,2]
[423649336,1780275038000,-1589.90080661,0.00010126,2]
[423649329,1780275038000,-200.0,9.996e-05,2]
[423649330,1780275038000,-831.15597078,0.0001,2]
[423649344,1780275038000,-290.28,0.00010369,2]
[423649326,1780275038000,-1616122.20628329,9.9e-05,2]
[423649327,1780275038000,-657.15285966,9.916e-05,2]
[423649325,1780275038000,-855.50184514,9.9e-05,2]
[423649324,1780275038000,-1268.32836985,9.9e-05,2]
[423649323,1780275038000,-2788.35926918,9.9e-05,2]
[423649322,1780275038000,-493.44068259,9.9e-05,2]
[423649331,1780275038000,-354.86327728,0.0001,2]
[423649349,1780275038000,-150.0,0.00010959,2]
[423649328,1780275038000,-261487.56985336,9.916e-05,2]
[423649347,1780275038000,-185.64,0.00010779,2]
[423649345,1780275038000,-185.64,0.00010529,2]
[423649368,1780275038000,-2000.0,0.00012,2]
[423649369,1780275038000,-2000.0,0.00012,2]
[423649366,1780275038000,-38246.53169009,0.00011699,2]
[423649370,1780275038000,-2000.0,0.00012,2]
[423649367,1780275038000,-161.5,0.00011742,2]
[423649363,1780275038000,-470.16,0.00011272,2]
[423649364,1780275038000,-248.45,0.0001132,2]
[423649359,1780275038000,-38246.53169009,0.00011099,2]
[423649358,1780275038000,-38246.53169009,0.00011099,2]
[423649361,1780275038000,-9852.16943735,0.00011144,2]
[423649365,1780275038000,-38246.53169009,0.00011323,2]
[423649362,1780275038000,-161.5,0.00011182,2]
[423649356,1780275038000,-586.9553555,0.00011046,2]
[423649346,1780275038000,-161.5,0.00010623,2]
[423649350,1780275038000,-150.0,0.00010959,2]
[423649352,1780275038000,-185.64,0.0001103,2]
[423649353,1780275038000,-5000.0,0.00011036,2]
[423649351,1780275038000,-2636.70230003,0.00011026,2]
[423649354,1780275038000,-849.79752058,0.00011039,2]
[423649355,1780275038000,-5000.0,0.00011046,2]
[423649360,1780275038000,-38246.53169009,0.00011099,2]
[423649357,1780275038000,-38246.53169017,0.00011099,2]
[423649339,1780275038000,-1500000.0,0.00010167,2]
[423649410,1780275039000,-826.42,0.00013699,2]
[423649408,1780275039000,-200.0,0.00013699,2]
[423649409,1780275039000,-2118.26,0.00013699,2]
[423649411,1780275039000,-500.0,0.00013699,2]
[423649416,1780275039000,-500.0,0.00013699,2]
[423649401,1780275039000,-17924.1237867,0.00013307,2]
[423649406,1780275039000,-500.0,0.00013671,2]
[423649405,1780275039000,-500.0,0.00013527,2]
[423649404,1780275039000,-500.0,0.00013382,2]
[423649414,1780275039000,-500.0,0.00013699,2]
[423649422,1780275039000,-500.0,0.00013699,2]
[423649407,1780275039000,-166.66,0.00013699,2]
[423649424,1780275039000,-500.0,0.00013699,2]
[423649430,1780275039000,-500.0,0.00013699,2]
[423649426,1780275039000,-500.0,0.00013699,2]
[423649418,1780275039000,-500.0,0.00013699,2]
[423649423,1780275039000,-500.0,0.00013699,2]
[423649415,1780275039000,-500.0,0.00013699,2]
[423649417,1780275039000,-500.0,0.00013699,2]
[423649420,1780275039000,-500.0,0.00013699,2]
[423649421,1780275039000,-500.0,0.00013699,2]
[423649419,1780275039000,-500.0,0.00013699,2]
[423649425,1780275039000,-500.0,0.00013699,2]
[423649428,1780275039000,-500.0,0.00013699,2]
[423649403,1780275039000,-2000.0,0.00013321,2]
[423649431,1780275039000,-500.0,0.00013699,2]
[423649435,1780275039000,-335.29101927,0.00013699,2]
[423649440,1780275039000,-500.0,0.00013699,2]
[423649427,1780275039000,-500.0,0.00013699,2]
[423649413,1780275039000,-500.0,0.00013699,2]
[423649397,1780275039000,-1104754.3891202,0.00013306,2]
[423649402,1780275039000,-246514.1709217,0.00013307,2]
[423649374,1780275039000,-307.08,0.00012,2]
[423649373,1780275039000,-1228.39,0.00012,2]
[423649371,1780275039000,-2000.0,0.00012,2]
[423649372,1780275039000,-189.23,0.00012,2]
[423649375,1780275039000,-511.83,0.00012013,2]
[423649377,1780275039000,-1412.18,0.00012039,2]
[423649384,1780275039000,-38246.53169009,0.00012453,2]
[423649380,1780275039000,-509.43302867,0.00012229,2]
[423649382,1780275039000,-2000.0,0.00012411,2]
[423649386,1780275039000,-181.26,0.00012617,2]
[423649381,1780275039000,-500.0,0.00012373,2]
[423649376,1780275039000,-2000.0,0.00012039,2]
[423649383,1780275039000,-33237.5546,0.00012411,2]
[423649378,1780275039000,-38246.53169009,0.00012076,2]
[423649385,1780275039000,-500.0,0.00012517,2]
[423649379,1780275039000,-2000.0,0.0001211,2]
[423649387,1780275039000,-500.0,0.00012661,2]
[423649389,1780275039000,-500.0,0.00012806,2]
[423649398,1780275039000,-5974.7079289,0.00013306,2]
[423649433,1780275039000,-500.0,0.00013699,2]
[423649394,1780275039000,-38246.53169009,0.00013206,2]
[423649391,1780275039000,-200.0,0.000129,4]
[423649400,1780275039000,-172807.2616701,0.00013307,2]
[423649388,1780275039000,-248.45,0.00012735,2]
[423649395,1780275039000,-500.0,0.00013238,2]
[423649393,1780275039000,-500.0,0.00013094,2]
[423649390,1780275039000,-38246.53169009,0.00012829,2]
[423649392,1780275039000,-500.0,0.0001295,2]
[423649396,1780275039000,-354.86327728,0.00013297,2]
[423649412,1780275039000,-500.0,0.00013699,2]
[423649436,1780275039000,-500.0,0.00013699,2]
[423649399,1780275039000,-60991.5600848,0.00013306,2]
[423649432,1780275039000,-500.0,0.00013699,2]
[423649477,1780275039000,-200.0,0.00015,2]
[423649480,1780275039000,-200.0,0.0001515,2]
[423649468,1780275039000,-500.0,0.00014968,2]
[423649472,1780275039000,-15403.6269817,0.00015,2]
[423649470,1780275039000,-385.64925623,0.00015,2]
[423649471,1780275039000,-386.025,0.00015,2]
[423649474,1780275039000,-200.0,0.00015,2]
[423649478,1780275039000,-1520.24509226,0.00015057,7]
[423649473,1780275039000,-351.55155215,0.00015,2]
[423649476,1780275039000,-200.0,0.00015,2]
[423649481,1780275039000,-200.0,0.0001515,2]
[423649482,1780275039000,-200.0,0.0001515,2]
[423649485,1780275039000,-200.0,0.00015301,2]
[423649484,1780275039000,-200.0,0.00015301,2]
[423649486,1780275039000,-200.0,0.00015301,2]
[423649492,1780275039000,-372.53,0.000155,2]
[423649483,1780275039000,-1517.64,0.000153,2]
[423649490,1780275039000,-200.0,0.00015455,2]
[423649491,1780275039000,-200.0,0.00015455,2]
[423649488,1780275039000,-200.0,0.00015455,2]
[423649489,1780275039000,-200.0,0.00015455,2]
[423649487,1780275039000,-200.0,0.00015301,2]
[423649494,1780275039000,-200.0,0.00015609,2]
[423649493,1780275039000,-248.45,0.00015565,2]
[423649495,1780275039000,-200.0,0.00015609,2]
[423649496,1780275039000,-200.0,0.00015609,2]
[423649498,1780275039000,-2273.37776545,0.00015807,2]
[423649497,1780275039000,-200.0,0.00015609,2]
[423649499,1780275039000,-300.0,0.00016,2]
[423649469,1780275039000,-533222.72037352,0.00015,2]
[423649479,1780275039000,-200.0,0.0001515,2]
[423649475,1780275039000,-200.0,0.00015,2]
[423649462,1780275039000,-500.0,0.00014536,2]
[423649429,1780275039000,-500.0,0.00013699,2]
[423649441,1780275039000,-500.0,0.00013699,2]
[423649439,1780275039000,-500.0,0.00013699,2]
[423649434,1780275039000,-500.0,0.00013699,2]
[423649464,1780275039000,-500.0,0.0001468,2]
[423649443,1780275039000,-500.0,0.00013699,2]
[423649453,1780275039000,-500.0,0.00014103,2]
[423649442,1780275039000,-500.0,0.00013699,2]
[423649454,1780275039000,-166.66,0.0001411,2]
[423649445,1780275039000,-500.0,0.00013699,2]
[423649444,1780275039000,-500.0,0.00013699,2]
[423649450,1780275039000,-500.0,0.00013959,2]
[423649446,1780275039000,-372.53,0.000137,2]
[423649448,1780275039000,-500.0,0.00013815,2]
[423649447,1780275039000,-163.47,0.000137,2]
[423649437,1780275039000,-500.0,0.00013699,2]
[423649452,1780275039000,-250.0,0.00014,2]
[423649451,1780275039000,-166.66,0.00013973,2]
[423649465,1780275039000,-500.0,0.00014824,2]
[423649463,1780275039000,-831.15597078,0.00014626,2]
[423649461,1780275039000,-2000.0,0.00014532,2]
[423649460,1780275039000,-500.0,0.00014392,2]
[423649456,1780275039000,-180.06,0.00014172,2]
[423649458,1780275039000,-500.0,0.00014248,2]
[423649438,1780275039000,-500.0,0.00013699,2]
[423649457,1780275039000,-166.66,0.00014247,2]
[423649459,1780275039000,-166.66,0.00014384,2]
[423649455,1780275039000,-248.45,0.0001415,2]
[423649466,1780275039000,-112753.74923156,0.0001485,2]
[423649449,1780275039000,-166.66,0.00013836,2]
[423649467,1780275039000,-200.0,0.0001488,2]
[423649504,1780275040000,-560.0,0.00017772,2]
[423649502,1780275040000,-150.0,0.00016715,7]
[423649503,1780275040000,-248.45,0.0001698,2]
[423649500,1780275040000,-201.10590632,0.000161,7]
[423649501,1780275040000,-200.0,0.0001634,2]
[423649509,1780275040000,-350.0,0.00018,2]
[423649511,1780275040000,-212.965266,0.00018594,2]
[423649507,1780275040000,-1090.00342372,0.0001789,2]
[423649512,1780275040000,-383.09583771,0.00019,2]
[423649513,1780275040000,-85818.1196077,0.00019,2]
[423649510,1780275040000,-490.0,0.00018594,2]
[423649506,1780275040000,-174.19,0.000178,2]
[423649514,1780275040000,-27233.75107891,0.00019072,2]
[423649517,1780275040000,-535.94538832,0.00019072,2]
[423649516,1780275040000,-480.53080747,0.00019072,2]
[423649525,1780275040000,-4216.79835984,0.00019072,2]
[423649540,1780275040000,-11229.80328208,0.00019072,2]
[423649505,1780275040000,-491.0,0.00017772,2]
[423649508,1780275040000,-8076.97962194,0.00018,2]
[423649580,1780275041000,-1830.77969556,0.00019072,2]
[423649872,1780275043000,-79007.29539875,0.00019072,2]
[423649870,1780275043000,-4097.08389086,0.00019072,2]
[423649871,1780275043000,-0.01341376,0.00019072,2]
[423649874,1780275043000,-18740.93405294,0.00019072,2]
[423649873,1780275043000,-743.33980056,0.00019072,2]
[423649880,1780275046000,-2876.5111,0.00019072,2]
[423649878,1780275046000,-4150.90662236,0.00019072,2]
[423649879,1780275046000,-2304.35819675,0.00019072,2]
[423649877,1780275046000,-1512.0,0.00019072,2]
[423649883,1780275054000,200.0,0.00030137,120]
[423649884,1780275073000,152.0,0.00030011,120]
[423649885,1780275108000,1151.0,9e-05,6]
[423649886,1780275151000,201.20314844,8.9e-05,2]
[423649887,1780275151000,118.72450232,8.9e-05,2]
[423649893,1780275271000,162.16,0.00028767,120]
[423649903,1780276140000,2000.0,0.00030136,120]
[423649906,1780276232000,-1168.91285717,9.506e-05,2]
[423649905,1780276232000,-329.1132,9.406e-05,2]
[423649907,1780276232000,-162.62514283,9.506e-05,2]
[423649909,1780276232000,-332.85890133,9.586e-05,2]
[423649908,1780276232000,-250.0,9.518e-05,2]
[423649910,1780276232000,-150.0,9.594e-05,2]
[423649913,1780276232000,-664.19982827,9.599e-05,2]
[423649911,1780276232000,-300.0,9.599e-05,2]
[423649915,1780276232000,-2272.95171957,9.6e-05,2]
[423649914,1780276232000,-5000.0,9.6e-05,2]
[423649916,1780276232000,-227.04828043,9.6e-05,2]
[423649917,1780276232000,-268.33077691,9.6e-05,2]
[423649912,1780276232000,-535.80017173,9.599e-05,2]
[423649924,1780276233000,-8173.23656239,9.6e-05,2]
[423649925,1780276233000,-5891.65125703,9.6e-05,2]
[423649929,1780276233000,-454.02947525,9.6e-05,2]
[423649931,1780276233000,-423.4821003,9.6e-05,2]
[423649922,1780276233000,-475.77184772,9.6e-05,2]
[423649926,1780276233000,-3911.1042238,9.6e-05,2]
[423649921,1780276233000,-1898.12028,9.6e-05,2]
[423649927,1780276233000,-1833.51726259,9.6e-05,2]
[423649918,1780276233000,-1991.4070198,9.6e-05,2]
[423649920,1780276233000,-5535.49871986,9.6e-05,2]
[423649935,1780276233000,-6803.82032798,9.6e-05,2]
[423649934,1780276233000,-1855.39247416,9.6e-05,2]
[423649932,1780276233000,-1124.41751106,9.6e-05,2]
[423649919,1780276233000,-23196.80322354,9.6e-05,2]
[423649930,1780276233000,-749.6440699,9.6e-05,2]
[423649928,1780276233000,-6925.92370641,9.6e-05,2]
[423649923,1780276233000,-504.23066075,9.6e-05,2]
[423649933,1780276233000,-2909.11681506,9.6e-05,2]
[423649943,1780276238000,-693.90791655,9.6e-05,2]
[423649953,1780276240000,-941.39137081,9.6e-05,2]
[423649952,1780276240000,-902.65302674,9.6e-05,2]
[423649954,1780276241000,-301.87915129,9.6e-05,2]
[423649964,1780276243000,-0.15842573,9.6e-05,2]
[423649967,1780276244000,-701114.89124849,9.6e-05,2]
[423649969,1780276244000,-20.77653532,9.6e-05,2]
[423649968,1780276244000,-1441.47611974,9.6e-05,2]
[423649980,1780276249000,-8958.3920339,9.6e-05,2]
[423649979,1780276249000,-2087.7459,9.6e-05,2]
[423649977,1780276249000,-794.30761346,9.6e-05,2]
[423649976,1780276249000,-3501.85717142,9.6e-05,2]
[423649975,1780276249000,-13642.14048296,9.6e-05,2]
[423649974,1780276249000,-8479.12316927,9.6e-05,2]
[423649978,1780276249000,-3192.17068419,9.6e-05,2]
[423650024,1780276261000,694.5,0.0003013,120]
[423650025,1780276262000,152.0,0.00028793,120]
[423650026,1780276322000,1691.97078516,0.0003013,120]
[423650031,1780277071000,162.16,0.00028767,120]
[423650034,1780277102000,487.896931,0.00029835,120]
[423650033,1780277102000,513.575716,0.00029985,120]
[423650032,1780277102000,540.606017,0.00030136,120]
[423650035,1780277111000,402.57,0.00030137,120]
[423650037,1780277340000,2000.0,0.00030136,120]
[423650041,1780277403000,431.218455,0.00029836,120]
[423650040,1780277403000,453.914163,0.00029986,120]
[423650042,1780277414000,234.0,0.000301,120]
[423650074,1780277431000,-453.69863366,9.399e-05,2]